fUST/lending_fUST_20251022
["ID","MTS","AMOUNT","RATE_DAILY","PERIOD"]
[391999192,1761075913257,429.318,0.00035113,30]
[391999193,1761075913870,445.202766,0.00035113,30]
[391999194,1761075914482,461.67526834,0.00035113,30]
[391999195,1761075915081,478.75725327,0.00035113,30]
[391999196,1761075915693,496.47127164,0.00035113,30]
[391999197,1761075916296,514.84070869,0.00035113,30]
[391999198,1761075916962,533.88981491,0.00035113,30]
[391999199,1761075917584,553.64373807,0.00035113,30]
[391999200,1761075918238,574.12855637,0.00035113,30]
[391999201,1761075918904,595.37131296,0.00035113,30]
[391999202,1761075919539,617.40005154,0.00035113,30]
[391999203,1761075920346,640.24385345,0.00035113,30]
[391999204,1761075920999,663.93287602,0.00035113,30]
[391999205,1761075921620,688.49839244,0.00035113,30]
[391999206,1761075922242,713.97283296,0.00035113,30]
[391999207,1761075922855,740.38982778,0.00035113,30]
[391999208,1761075923499,767.7842514,0.00035113,30]
[391999209,1761075924099,796.19226871,0.00035113,30]
[391999210,1761075924806,796.19226871,0.00035113,30]
[391999211,1761075953986,150.0,0.00019993,2]
[391999212,1761075954470,150.0,0.00021811,2]
[391999213,1761075954839,150.0,0.00023628,2]
[391999214,1761075959486,150.0,0.0001327,30]
[391999215,1761075959904,150.0,0.00014477,30]
[391999216,1761075960347,150.0,0.00015683,30]
[391999217,1761075960746,150.0,0.00016889,30]
[391999218,1761075961660,150.0,0.00018096,30]
[391999219,1761075962101,150.0,0.00019302,30]
[391999220,1761075965698,567.779261,0.00023711,2]
[391999221,1761075972866,150.0,0.00035113,30]
[391999223,1761075980607,200.0,0.00035113,120]
[391999224,1761075992397,1433.5906968,0.00023711,2]
[391999225,1761076000462,300.0,0.000237,2]
[391999226,1761076012172,300.0,0.000237,2]
[391999227,1761076023132,300.0,0.000237,2]
[391999228,1761076026579,150.0,0.00020026,2]
[391999229,1761076027102,150.0,0.00021846,2]
[391999230,1761076027511,150.0,0.00023667,2]
[391999231,1761076027951,150.0,0.00013032,30]
[391999232,1761076028393,150.0,0.00014217,30]
[391999233,1761076028783,150.0,0.00015401,30]
[391999234,1761076029188,150.0,0.00016586,30]
[391999235,1761076029623,150.0,0.00017771,30]
[391999236,1761076030067,150.0,0.00018955,30]
[391999237,1761076034490,300.0,0.000237,2]
[391999238,1761076045524,300.0,0.000237,2]
[391999239,1761076051239,300.0,0.000237,2]
[391999240,1761076051492,417.15472785,0.00024067,2]
[391999241,1761076054788,4999.26457535,0.00024067,2]
[391999242,1761076054812,0.73542465,0.00024067,2]
[391999243,1761076057317,300.0,0.000237,2]
[391999244,1761076062022,300.0,0.000237,2]
[391999245,1761076068274,300.0,0.000237,2]
[391999246,1761076074702,300.0,0.000237,2]
[391999247,1761076079338,300.0,0.000237,2]
[391999248,1761076085752,300.0,0.000237,2]
[391999249,1761076091455,300.0,0.000237,2]
[391999250,1761076096522,300.0,0.000237,2]
[391999251,1761076097433,150.0,0.00020233,2]
[391999252,1761076097866,150.0,0.00022072,2]
[391999253,1761076098260,150.0,0.00023911,2]
[391999254,1761076101658,150.0,0.00013757,30]
[391999255,1761076102033,150.0,0.00015007,30]
[391999256,1761076102646,150.0,0.00016258,30]
[391999257,1761076102706,795.951517,0.00013699,2]
[391999258,1761076102848,150.0,0.00017509,30]
[391999259,1761076102908,795.951517,0.00020187,2]
[391999260,1761076103323,300.0,0.000237,2]
[391999261,1761076106509,5000.0,0.00024068,2]
[391999263,1761076107453,300.0,0.000237,2]
[391999264,1761076111248,300.0,0.000237,2]
[391999265,1761076114234,258.106966,0.00024068,2]
[391999266,1761076114256,4741.893034,0.00024068,2]
[391999267,1761076114368,300.0,0.000237,2]
[391999268,1761076118572,300.0,0.000237,2]
[391999270,1761076129962,4658.116966,0.00024068,2]
[391999271,1761076129985,341.883034,0.00024068,2]
[391999272,1761076137819,5000.0,0.00024068,2]
[391999273,1761076153911,4658.126966,0.00024068,2]
[391999274,1761076153934,341.873034,0.00024068,2]
[391999275,1761076161585,5000.0,0.00024068,2]
[391999276,1761076170344,150.0,0.00020228,2]
[391999277,1761076170738,150.0,0.00022067,2]
[391999278,1761076171130,150.0,0.00023905,2]
[391999279,1761076174515,150.0,0.00013786,30]
[391999280,1761076174901,150.0,0.00015039,30]
[391999281,1761076177264,5000.0,0.00024072,2]
[391999282,1761076185226,4550.01,0.00024072,2]
[391999283,1761076200490,5000.0,0.00024068,2]
[391999284,1761076208461,414.0,0.00035112,30]
[391999285,1761076209084,429.318,0.00035112,30]
[391999286,1761076209775,445.202766,0.00035112,30]
[391999287,1761076210441,461.67526834,0.00035112,30]
[391999288,1761076211189,478.75725327,0.00035112,30]
[391999289,1761076211708,496.47127164,0.00035112,30]
[391999290,1761076212318,514.84070869,0.00035112,30]
[391999291,1761076212999,533.88981491,0.00035112,30]
[391999292,1761076213622,553.64373807,0.00035112,30]
[391999293,1761076214251,574.12855637,0.00035112,30]
[391999294,1761076214862,595.37131296,0.00035112,30]
[391999295,1761076215522,617.40005154,0.00035112,30]
[391999296,1761076216131,640.24385345,0.00035112,30]
[391999297,1761076216847,663.93287602,0.00035112,30]
[391999298,1761076217522,663.93287602,0.00035112,30]
[391999299,1761076223852,5000.0,0.00024068,2]
[391999322,1761076232083,-449.99,0.00024072,2]
[391999324,1761076232092,-1145.37179742,0.00024307,10]
[391999327,1761076232125,-901.4165434,0.00024307,10]
[391999329,1761076232134,-323.67655439,0.00024307,2]
[391999330,1761076232144,-1200.0,0.00024499,2]
[391999332,1761076232154,-5452.49384466,0.000245,2]
[391999334,1761076232164,-2893.82634994,0.00024551,2]
[391999336,1761076232174,-483.70583348,0.00024622,2]
[391999337,1761076232183,-300.0,0.00024649,2]
[391999339,1761076232192,-257.57137687,0.0002465,2]
[391999341,1761076232202,-501.42009765,0.0002465,2]
[391999343,1761076232212,-243.0,0.0002465,2]
[391999345,1761076232221,-243.0,0.0002465,2]
[391999346,1761076232231,-289.11940033,0.0002465,2]
[391999347,1761076232241,-400.00831529,0.0002465,2]
[391999348,1761076232251,-54132.62096441,0.00024651,2]
[391999355,1761076241858,150.0,0.00020246,2]
[391999356,1761076242373,150.0,0.00022087,2]
[391999358,1761076242704,150.0,0.00023927,2]
[391999366,1761076243154,-453.89,0.00024641,10]
[391999367,1761076243166,-434.78,0.00024641,10]
[391999368,1761076243177,-315867.37903559,0.00024651,2]
[391999369,1761076243187,-742.3874467,0.00024742,2]
[391999370,1761076243198,-15614.3935319,0.00024742,2]
[391999371,1761076243208,-314.04468957,0.00024751,2]
[391999372,1761076243218,-446.64863238,0.00024751,2]
[391999373,1761076243227,-3252.0,0.00024772,2]
[391999374,1761076243238,-346.28,0.00024828,2]
[391999375,1761076243247,-522.09,0.00024831,3]
[391999376,1761076243257,-348.06,0.00024841,3]
[391999377,1761076243266,-174.03,0.00024841,3]
[391999378,1761076243277,-2770.79322376,0.00024864,2]
[391999379,1761076243287,-500.0,0.00024873,2]
[391999380,1761076243297,-500.0,0.00024873,2]
[391999381,1761076243307,-500.0,0.00024873,2]
[391999382,1761076243317,-501.04966487,0.00024873,2]
[391999383,1761076243327,-500.0,0.00024873,2]
[391999384,1761076243337,-500.0,0.00024873,2]
[391999385,1761076243346,-803.96753829,0.00024896,2]
[391999386,1761076243355,-373476.514881,0.000249,2]
[391999387,1761076243365,-17822.13482289,0.0002499,2]
[391999388,1761076243374,-358.90821665,0.00025039,2]
[391999389,1761076243384,-621.51435936,0.00025321,2]
[391999390,1761076243393,-3252.0,0.0002535,7]
[391999391,1761076243403,-886.32315773,0.00025421,2]
[391999392,1761076243412,-1000.0,0.00025421,2]
[391999393,1761076243421,-1000.0,0.00025421,2]
[391999394,1761076243430,-530.2359569,0.00025421,2]
[391999395,1761076243440,-1000.0,0.00025421,2]
[391999396,1761076243450,-500.0,0.00025421,2]
[391999397,1761076243460,-3504.0,0.00025471,2]
[391999398,1761076243470,-500.0,0.00025476,2]
[391999400,1761076243479,-1429.27562363,0.00025497,2]
[391999402,1761076243487,-500.0,0.00025531,2]
[391999403,1761076243494,-155.0,0.0002556,2]
[391999404,1761076243503,-500.0,0.00025582,2]
[391999405,1761076243515,-394.0,0.00025582,2]
[391999406,1761076243524,-500.0,0.00025585,2]
[391999407,1761076243534,-227.5,0.000256,2]
[391999408,1761076243543,-570.77288351,0.00025622,2]
[391999409,1761076243552,-500.0,0.0002564,2]
[391999410,1761076243563,-1179.7539172,0.00025644,2]
[391999411,1761076243573,-500.0,0.00025695,2]
[391999412,1761076243582,-501.4473781,0.00025717,2]
[391999413,1761076243590,-500.0,0.00025717,2]
[391999414,1761076243599,-500.0,0.00025717,2]
[391999415,1761076243609,-237.00803039,0.00025717,2]
[391999416,1761076243619,-473.25744716,0.00025717,2]
[391999417,1761076243629,-500.0,0.00025717,2]
[391999418,1761076243638,-500.0,0.00025717,2]
[391999419,1761076243650,-452.18541522,0.00025717,2]
[391999420,1761076243659,-293.74716204,0.00025717,2]
[391999421,1761076243669,-500.0,0.00025717,2]
[391999422,1761076243678,-500.0,0.00025717,2]
[391999423,1761076243687,-500.0,0.00025717,2]
[391999424,1761076243697,-500.0,0.00025717,2]
[391999425,1761076243707,-500.0,0.00025717,2]
[391999426,1761076243716,-500.0,0.00025717,2]
[391999427,1761076243726,-500.0,0.00025717,2]
[391999428,1761076243736,-577.1107497,0.00025717,2]
[391999429,1761076243745,-500.0,0.00025717,2]
[391999430,1761076243758,-500.0,0.00025717,2]
[391999431,1761076243767,-522.68705568,0.00025717,2]
[391999432,1761076243777,-500.0,0.00025717,2]
[391999433,1761076243787,-500.0,0.00025717,2]
[391999434,1761076243797,-150.0,0.00025744,2]
[391999435,1761076243807,-500.0,0.0002575,2]
[391999436,1761076243816,-500.0,0.00025757,2]
[391999437,1761076243826,-158.30559823,0.00025773,2]
[391999438,1761076243836,-500.0,0.00025773,2]
[391999439,1761076243846,-500.0,0.00025773,2]
[391999440,1761076243856,-500.0,0.00025773,2]
[391999441,1761076243865,-500.35577158,0.00025773,2]
[391999442,1761076243875,-158.09830648,0.00025773,2]
[391999443,1761076243885,-158.02096538,0.00025773,2]
[391999444,1761076243894,-500.0,0.00025773,2]
[391999445,1761076243903,-257.1679022,0.00025773,2]
[391999446,1761076243912,-560.09678563,0.00025773,2]
[391999447,1761076243921,-3504.0,0.00025787,7]
[391999448,1761076243930,-396.0,0.00025787,2]
[391999449,1761076243939,-500.0,0.00025805,2]
[391999450,1761076243949,-394.0,0.00025813,7]
[391999451,1761076243958,-500.0,0.00025856,2]
[391999452,1761076243968,-500.0,0.00025859,2]
[391999453,1761076243979,-500.0,0.00025914,2]
[391999454,1761076243988,-394.0,0.00025939,2]
[391999455,1761076243998,-1500.0,0.00025968,2]
[391999456,1761076244008,-1500.0,0.00025968,2]
[391999457,1761076244017,-1500.0,0.00025968,2]
[391999458,1761076244027,-500.0,0.00025969,2]
[391999459,1761076244037,-500.0,0.00026024,2]
[391999460,1761076244050,-500.0,0.00026033,2]
[391999461,1761076244060,-500.0,0.00026033,2]
[391999462,1761076244070,-500.0,0.00026033,2]
[391999463,1761076244081,-500.0,0.00026033,2]
[391999464,1761076244092,-500.0,0.00026079,2]
[391999465,1761076244102,-621.51435933,0.00026091,2]
[391999466,1761076244111,-2233.24316192,0.00026098,2]
[391999467,1761076244120,-151.0,0.00026107,7]
[391999468,1761076244129,-151.0,0.00026107,7]
[391999469,1761076244139,-151.0,0.00026107,7]
[391999470,1761076244148,-151.0,0.00026107,7]
[391999471,1761076244157,-151.0,0.00026107,7]
[391999472,1761076244167,-151.0,0.00026107,7]
[391999473,1761076244176,-151.0,0.00026107,7]
[391999474,1761076244185,-211.6854,0.00026107,7]
[391999475,1761076244194,-151.0,0.00026107,7]
[391999476,1761076244203,-151.0,0.00026107,7]
[391999477,1761076244212,-160.0,0.00026107,7]
[391999478,1761076244222,-403.05172659,0.00026107,7]
[391999479,1761076244231,-812.14,0.00026111,3]
[391999480,1761076244241,-406.06,0.00026111,3]
[391999481,1761076244250,-500.0,0.0002613,2]
[391999482,1761076244259,-500.0,0.00026133,2]
[391999483,1761076244269,-500.0,0.00026188,2]
[391999484,1761076244278,-696.12,0.00026211,3]
[391999485,1761076244287,-348.06,0.00026211,3]
[391999486,1761076244296,-277.418358,0.00026242,7]
[391999487,1761076244306,-277.418358,0.00026242,7]
[391999488,1761076244316,-277.418358,0.00026242,7]
[391999489,1761076244326,-277.418358,0.00026242,7]
[391999490,1761076244335,-151.0,0.00026242,7]
[391999491,1761076244344,-151.0,0.00026242,7]
[391999492,1761076244353,-151.0,0.00026242,7]
[391999493,1761076244363,-364.0,0.00026243,2]
[391999494,1761076244372,-463.11226929,0.00026265,2]
[391999495,1761076244381,-1000.0,0.00026265,2]
[391999496,1761076244391,-1000.0,0.00026265,2]
[391999497,1761076244401,-1000.0,0.00026265,2]
[391999498,1761076244413,-505.85006658,0.00026265,2]
[391999499,1761076244423,-1000.0,0.00026265,2]
[391999500,1761076244432,-1000.0,0.00026265,2]
[391999501,1761076244442,-1000.0,0.00026265,2]
[391999502,1761076244452,-1000.0,0.00026265,2]
[391999503,1761076244462,-2893.82634992,0.00026276,2]
[391999504,1761076244472,-1000.0,0.00026305,2]
[391999505,1761076244482,-472.36268032,0.00026321,2]
[391999506,1761076244493,-151.0,0.00026321,7]
[391999507,1761076244504,-151.0,0.00026321,7]
[391999508,1761076244513,-151.0,0.00026321,7]
[391999509,1761076244523,-151.0,0.00026321,7]
[391999510,1761076244533,-151.0,0.00026321,7]
[391999511,1761076244543,-5500.0,0.00026321,7]
[391999512,1761076244553,-271.354589,0.00026321,7]
[391999513,1761076244562,-5500.0,0.00026321,7]
[391999514,1761076244571,-271.354589,0.00026321,7]
[391999515,1761076244579,-5500.0,0.00026321,7]
[391999516,1761076244588,-151.0,0.00026321,7]
[391999517,1761076244598,-5500.0,0.00026321,7]
[391999518,1761076244608,-271.354589,0.00026321,7]
[391999519,1761076244617,-271.354589,0.00026321,7]
[391999520,1761076244626,-151.0,0.00026321,7]
[391999521,1761076244635,-203.658787,0.00026321,7]
[391999522,1761076244645,-203.658787,0.00026321,7]
[391999523,1761076244654,-203.658787,0.00026321,7]
[391999524,1761076244663,-203.658787,0.00026321,7]
[391999525,1761076244672,-151.0,0.00026321,7]
[391999526,1761076244681,-151.0,0.00026321,7]
[391999527,1761076244690,-151.0,0.00026321,7]
[391999528,1761076244699,-151.0,0.00026321,7]
[391999529,1761076244861,-151.440173,0.00026321,7]
[391999530,1761076244872,-151.0,0.00026321,7]
[391999531,1761076244881,-151.0,0.00026321,7]
[391999532,1761076244891,-151.0,0.00026321,7]
[391999533,1761076244901,-3755.0,0.00026333,2]
[391999534,1761076244910,-160.0,0.00026346,2]
[391999535,1761076244919,-319.0,0.00026366,7]
[391999536,1761076244929,-225.0,0.00026384,20]
[391999537,1761076244938,-3755.0,0.00026394,7]
[391999538,1761076244948,-500.0,0.00026404,2]
[391999539,1761076244957,-3755.0,0.00026433,2]
[391999540,1761076244966,-150.0,0.00026473,2]
[391999541,1761076244975,-151.0,0.00026473,7]
[391999542,1761076244985,-151.0,0.00026473,7]
[391999543,1761076244994,-151.0,0.00026473,7]
[391999544,1761076245004,-151.0,0.00026473,7]
[391999545,1761076245014,-284.922128,0.00026473,7]
[391999546,1761076245023,-284.922128,0.00026473,7]
[391999547,1761076245034,-284.922128,0.00026473,7]
[391999548,1761076245043,-284.922128,0.00026473,7]
[391999549,1761076245054,-791.1772209,0.00026473,2]
[391999550,1761076245063,-167.0,0.0002649,3]
[391999551,1761076245073,-167.0,0.0002649,3]
[391999552,1761076245082,-167.0,0.0002649,3]
[391999553,1761076245092,-299.21390515,0.0002649,3]
[391999554,1761076245102,-165.0,0.0002649,3]
[391999555,1761076245112,-166.0,0.0002649,3]
[391999556,1761076245122,-165.0,0.0002649,3]
[391999557,1761076245132,-166.0,0.0002649,3]
[391999558,1761076245142,-163.0,0.0002649,3]
[391999559,1761076245151,-153.65056194,0.0002649,3]
[391999560,1761076245160,-165.0,0.0002649,3]
[391999561,1761076245169,-330.0,0.0002649,3]
[391999562,1761076245179,-187.82326272,0.0002649,3]
[391999563,1761076245188,-165.0,0.0002649,3]
[391999564,1761076245197,-330.0,0.0002649,3]
[391999565,1761076245207,-167.1362042,0.0002649,3]
[391999566,1761076245216,-166.0,0.0002649,3]
[391999567,1761076245226,-330.0,0.0002649,3]
[391999568,1761076245235,-166.0,0.0002649,3]
[391999569,1761076245244,-330.0,0.0002649,3]
[391999570,1761076245254,-166.0,0.0002649,3]
[391999571,1761076245264,-330.0,0.0002649,3]
[391999572,1761076245274,-330.0,0.0002649,3]
[391999573,1761076245284,-330.0,0.0002649,3]
[391999574,1761076245294,-330.0,0.0002649,3]
[391999575,1761076245304,-330.0,0.0002649,3]
[391999576,1761076245314,-330.0,0.0002649,3]
[391999577,1761076245324,-330.0,0.0002649,3]
[391999578,1761076245334,-267.89579574,0.0002649,3]
[391999579,1761076245344,-151.0,0.0002649,7]
[391999580,1761076245354,-362.893061,0.0002649,7]
[391999581,1761076245363,-362.893061,0.0002649,7]
[391999582,1761076245373,-151.0,0.0002649,7]
[391999583,1761076245383,-151.0,0.0002649,2]
[391999584,1761076245392,-362.893061,0.0002649,7]
[391999585,1761076245402,-151.0,0.0002649,7]
[391999586,1761076245411,-362.893061,0.0002649,7]
[391999587,1761076245422,-151.0,0.0002649,7]
[391999588,1761076245432,-151.0,0.0002649,7]
[391999589,1761076245441,-151.0,0.0002649,7]
[391999590,1761076245450,-151.0,0.0002649,7]
[391999591,1761076245460,-151.0,0.0002649,7]
[391999592,1761076245470,-151.0,0.0002649,7]
[391999593,1761076245480,-151.0,0.0002649,7]
[391999594,1761076245491,-151.0,0.0002649,7]
[391999595,1761076245501,-162.789109,0.00026496,2]
[391999596,1761076245512,-151.0,0.00026496,7]
[391999597,1761076245521,-151.0,0.00026516,7]
[391999598,1761076245532,-151.0,0.00026516,7]
[391999599,1761076245541,-269.998041,0.00026516,7]
[391999600,1761076245553,-269.998041,0.00026516,7]
[391999601,1761076245562,-269.998041,0.00026516,7]
[391999602,1761076245572,-269.998041,0.00026516,7]
[391999603,1761076245581,-151.0,0.00026516,7]
[391999604,1761076245593,-2000.0,0.00026516,2]
[391999605,1761076245604,-2000.0,0.00026516,2]
[391999606,1761076245615,-2000.0,0.00026516,2]
[391999607,1761076245625,-319.0,0.00026577,2]
[391999608,1761076245636,-1000.0,0.00026581,2]
[391999609,1761076245645,-370.44369419,0.00026581,2]
[391999610,1761076245654,-657.83993354,0.00026622,2]
[391999611,1761076245663,-319.0,0.00026635,7]
[391999612,1761076245673,-319.0,0.00026638,7]
[391999613,1761076245682,-998.3028851,0.00026657,2]
[391999614,1761076245691,-319.0,0.00026668,2]
[391999615,1761076245701,-749.0,0.00026675,2]
[391999616,1761076245710,-795.951517,0.00026676,2]
[391999617,1761076245719,-500.0,0.00026678,2]
[391999618,1761076245729,-420.0,0.00026713,2]
[391999619,1761076245740,-151.0,0.00026789,7]
[391999620,1761076245750,-198.479101,0.00026789,2]
[391999621,1761076245763,-151.0,0.00026789,7]
[391999622,1761076245772,-151.0,0.00026789,7]
[391999623,1761076245783,-151.0,0.00026789,7]
[391999624,1761076245796,-151.0,0.00026789,7]
[391999625,1761076245806,-151.0,0.00026789,7]
[391999626,1761076245815,-151.0,0.00026789,7]
[391999628,1761076245825,-237.458576,0.00026789,7]
[391999629,1761076245835,-151.0,0.00026789,7]
[391999631,1761076245845,-188.55712605,0.00026813,2]
[391999632,1761076245854,-1505.61126983,0.00026813,2]
[391999633,1761076245863,-1500.0,0.00026813,2]
[391999634,1761076245874,-1500.0,0.00026813,2]
[391999635,1761076245884,-1500.0,0.00026813,2]
[391999636,1761076245894,-1500.0,0.00026813,2]
[391999637,1761076245902,-1500.0,0.00026813,2]
[391999638,1761076245912,-895.56372545,0.00026853,2]
[391999639,1761076245921,-621.51435933,0.00026861,2]
[391999640,1761076245931,-277.418358,0.00026865,7]
[391999642,1761076245942,-277.418358,0.00026865,7]
[391999643,1761076245951,-277.418358,0.00026865,7]
[391999644,1761076245962,-277.418358,0.00026865,7]
[391999645,1761076245971,-151.0,0.00026865,7]
[391999646,1761076245980,-151.0,0.00026865,7]
[391999647,1761076245991,-1000.0,0.00026865,2]
[391999648,1761076245999,-1000.0,0.00026865,2]
[391999649,1761076246009,-1000.0,0.00026865,2]
[391999650,1761076246019,-1000.0,0.00026865,2]
[391999651,1761076246029,-1000.0,0.00026865,2]
[391999652,1761076246039,-1000.0,0.00026865,2]
[391999653,1761076246048,-1000.0,0.00026865,2]
[391999654,1761076246057,-1000.0,0.00026865,2]
[391999655,1761076246067,-1000.0,0.00026865,2]
[391999656,1761076246076,-1000.0,0.00026865,2]
[391999657,1761076246086,-1000.0,0.00026865,2]
[391999658,1761076246097,-1000.0,0.00026865,2]
[391999659,1761076246106,-1000.0,0.00026865,2]
[391999660,1761076246116,-1000.0,0.00026865,2]
[391999661,1761076246126,-1000.0,0.00026865,2]
[391999662,1761076246136,-1000.0,0.00026865,2]
[391999663,1761076246147,-1000.0,0.00026865,2]
[391999664,1761076246157,-1000.0,0.00026865,2]
[391999665,1761076246166,-1000.0,0.00026865,2]
[391999666,1761076246177,-681.7136,0.00026865,2]
[391999667,1761076246186,-151.0,0.00026865,7]
[391999668,1761076246195,-151.0,0.00026865,7]
[391999669,1761076246205,-151.0,0.00026865,2]
[391999670,1761076246216,-151.0,0.00026865,7]
[391999671,1761076246226,-151.0,0.00026865,7]
[391999672,1761076246236,-151.0,0.00026865,7]
[391999673,1761076246246,-151.0,0.00026865,7]
[391999674,1761076246255,-151.0,0.00026865,7]
[391999675,1761076246265,-292.442796,0.00026865,7]
[391999676,1761076246274,-498.808019,0.00026865,7]
[391999677,1761076246284,-498.808019,0.00026865,7]
[391999678,1761076246293,-498.808019,0.00026865,7]
[391999679,1761076246302,-498.808019,0.00026865,7]
[391999680,1761076246312,-151.0,0.00026865,7]
[391999681,1761076246320,-151.0,0.00026865,7]
[391999682,1761076246330,-151.0,0.00026865,7]
[391999683,1761076246340,-375.548694,0.00026865,7]
[391999684,1761076246350,-375.548694,0.00026865,7]
[391999685,1761076246360,-375.548694,0.00026865,7]
[391999686,1761076246369,-375.548694,0.00026865,7]
[391999687,1761076246380,-230.572268,0.00026865,7]
[391999688,1761076246390,-230.572268,0.00026865,7]
[391999689,1761076246399,-151.0,0.00026865,7]
[391999690,1761076246409,-230.572268,0.00026865,7]
[391999691,1761076246420,-230.572268,0.00026865,7]
[391999692,1761076246429,-151.0,0.00026865,7]
[391999693,1761076246439,-151.0,0.00026865,7]
[391999694,1761076246448,-151.0,0.00026865,7]
[391999695,1761076246458,-151.0,0.00026865,7]
[391999696,1761076246467,-209.688996,0.00026865,7]
[391999697,1761076246476,-5500.0,0.00026865,7]
[391999699,1761076246486,-271.354589,0.00026865,7]
[391999701,1761076246496,-5500.0,0.00026865,7]
[391999702,1761076246508,-271.354589,0.00026865,7]
[391999703,1761076246518,-5500.0,0.00026865,7]
[391999704,1761076246527,-151.0,0.00026865,7]
[391999705,1761076246537,-5500.0,0.00026865,7]
[391999706,1761076246547,-271.354589,0.00026865,7]
[391999707,1761076246556,-271.354589,0.00026865,7]
[391999708,1761076246565,-151.0,0.00026865,7]
[391999709,1761076246574,-203.658787,0.00026865,7]
[391999710,1761076246583,-203.658787,0.00026865,7]
[391999711,1761076246592,-203.658787,0.00026865,7]
[391999712,1761076246602,-203.658787,0.00026865,7]
[391999713,1761076246611,-151.0,0.00026865,7]
[391999714,1761076246620,-151.0,0.00026865,7]
[391999715,1761076246630,-151.0,0.00026865,7]
[391999716,1761076246639,-151.0,0.00026865,7]
[391999717,1761076246648,-151.0,0.00026865,7]
[391999718,1761076246658,-260.0,0.00026894,2]
[391999719,1761076246667,-605.00796605,0.00026933,3]
[391999720,1761076246676,-308.89336683,0.00026933,3]
[391999721,1761076246685,-462.41270176,0.00026933,3]
[391999722,1761076246695,-316.36703686,0.00026933,3]
[391999723,1761076246704,-403.05172659,0.0002694,3]
[391999724,1761076246713,-500.0,0.00026952,2]
[391999725,1761076246723,-150.0,0.00026973,2]
[391999726,1761076246732,-150.0,0.00026973,2]
[391999727,1761076246742,-602.6022031,0.00026987,2]
[391999728,1761076246753,-173.1469216,0.00026987,2]
[391999729,1761076246764,-1179.7539172,0.00026987,2]
[391999730,1761076246775,-589.8769586,0.00026987,2]
[391999731,1761076246784,-589.8769586,0.00026987,2]
[391999732,1761076246794,-589.8769586,0.00026987,2]
[391999733,1761076246803,-589.8769586,0.00026987,2]
[391999734,1761076246813,-1847.80115624,0.00026996,3]
[391999735,1761076246822,-42408.0976465,0.00027,7]
[391999736,1761076246832,-150.0,0.00027,2]
[391999737,1761076246841,-119990.989999,0.00027,2]
[391999738,1761076246851,-3000.0,0.00027,2]
[391999739,1761076246861,-274537.41331873,0.00027,2]
[391999740,1761076246871,-151.0,0.00027,7]
[391999741,1761076246881,-151.0,0.00027,7]
[391999742,1761076246890,-151.0,0.00027,7]
[391999743,1761076246900,-151.0,0.00027,7]
[391999744,1761076246909,-161.392028,0.00027,7]
[391999745,1761076246919,-151.0,0.00027,7]
[391999746,1761076246929,-195.238872,0.00027,7]
[391999747,1761076246938,-151.0,0.00027,7]
[391999748,1761076246947,-151.0,0.00027,7]